Cogmind - Beta 14 @@@ ROGUE MODE // 2025.03.02 @ 23:01:37 Player: Bbenedict8 Result: Destroyed by S-10 Pest with Light Assault Rifle Performance ------------- Evolutions (0) 0 Regions Visited (2) 400 Robots Destroyed (23) 115 Value Destroyed (757) 757 Prototype IDs (0) 0 Alien Tech Used (0) 0 Bonus (0) 0 TOTAL SCORE: 1272 Bonus ------- None Cogmind --------- Core Integrity 0/250 Matter 275/300 Energy 100/100 System Corruption 0% Temperature Cool (0) Movement Core (50) Location -10/Mines Parts ------- > --- POWER (1) -------- (None) > --- PROPULSION (2) --- (None) > --- UTILITY (2) ------ Core Shielding > --- WEAPON (2) ------- (None) > --- INVENTORY (5) ---- Light Treads Large Storage Unit Propulsion Shielding Peak State ------------ > --- POWER ------------ Improved Ion Engine > --- PROPULSION ------- Light Treads Light Treads > --- UTILITY ---------- Improved Heat Sink Large Storage Unit > --- WEAPON ----------- Light Assault Rifle Light Cannon > --- INVENTORY -------- Ion Engine Ion Engine Light Treads Light Treads Large Storage Unit Terrain Scanner Propulsion Shielding Light Armor Plating Small Laser Light Assault Rifle Light Assault Rifle Light Cannon [Rating: 11] Favorites ----------- Power Ion Engine Engine Ion Engine Propulsion Light Treads Treads Light Treads Utility Improved Heat Sink Device Improved Heat Sink Storage Large Storage Unit Protection Core Shielding Weapon Light Assault Rifle Energy Gun EM Pulse Gun Ballistic Gun Light Assault Rifle Ballistic Cannon Light Cannon Build | -11 -10 -10 ------- Run | Yrd Mat Min Slots Evolved . | . . . Power . | . . . Propulsion . | . . . Utility . | . . . Weapon . | . . . Parts Attached 17 | 6 6 5 Power 3 | 1 1 1 Engine 3 | 1 1 1 Core . | . . . Reactor . | . . . Propulsion 5 | 2 2 1 Treads 5 | 2 2 1 Leg . | . . . Wheel . | . . . Hover . | . . . Flight . | . . . Utility 6 | 1 2 3 Device 1 | . 1 . Storage 2 | 1 1 . Processor . | . . . Hackware . | . . . Protection 3 | . . 3 Artifact . | . . . Weapon 3 | 2 1 . Energy Gun 1 | 1 . . Energy Cannon . | . . . Ballistic Gun 1 | 1 . . Ballistic Cannon 1 | . 1 . Launcher . | . . . Special Weapon . | . . . Impact Weapon . | . . . Slashing Weapon . | . . . Piercing Weapon . | . . . Special Melee Weapon . | . . . Unidentified Prototypes . | . . . Parts Lost 6 | . 3 3 Power 1 | . 1 . Propulsion 2 | . 1 1 Utility 1 | . . 1 Weapon 2 | . 1 1 Highest Loss Streak 2 | . 1 2 To Critical Strikes . | . . . Average Slot Usage (%) 95 | . 98 87 Engine 13 | . 14 11 Treads 26 | . 28 23 Device 12 | . 12 11 Storage 13 | . 14 11 Energy Gun 5 | . 7 . Ballistic Gun 13 | . 14 11 Ballistic Cannon 8 | . 6 11 Peak Build Rating 11 | 6 10 11 Average Rating 8 | 3 8 9 On Entrance 5 | . 6 10 Naked Turns 15 | . . 15 Heaviest Build 32 | 13 30 32 Greatest Support 40 | 40 40 40 Greatest Overweight (x) 1 | . . 1 Average Overweight (x) . | . . . Largest Inventory Capacity 15 | 8 15 15 Average Capacity 13 | 5 14 13 Most Carried 14 | 5 10 14 Average Carried 7 | 1 6 12 Final Capacity 15 | 8 15 5 Final Carried 10 | 2 10 3 Class Distribution -------------------- 100% | Mutant Dominant Class ---------------- Mutant | -10/Materials Mutant | -10/Mines Resources | -11 -10 -10 ----------- Run | Yrd Mat Min Matter Collected 548 | 245 213 90 Remotely . | . . . Salvage Created 849 | . 744 105 Parts 54 | . 49 5 Haulers Intercepted 1 | . 1 . Recyclers Shooed 1 | . 1 . Parts Field Recycled . | . . . Retrieved Matter . | . . . Parts Self-Destructed . | . . . Prevented . | . . . Kills | -11 -10 -10 ------- Run | Yrd Mat Min Combat Hostiles Destroyed 19 | . 17 2 Melee 1 | . 1 . Guns 9 | . 9 . Cannons 9 | . 7 2 Classes Destroyed 5 | . 4 1 Hauler 1 | . 1 . Recycler 1 | . 1 . Watcher 2 | . 2 . Grunt 17 | . 17 . Sentry 2 | . . 2 Best Kill Streak 4 | . 4 2 Combat Bots Only 3 | . 3 2 Max Kills in Single Turn 1 | . 1 1 Gunslinging . | . . . Exploded . | . . . Melee 1 | . 1 . Uniques/NPCs Destroyed . | . . . Combat | -11 -10 -10 -------- Run | Yrd Mat Min Hostile Shots Fired 130 | . 81 49 Missed 32 | . 16 16 Damage Taken 1232 | . 791 441 Core 253 | . 110 143 Absorbed by Shields . | . . . Redirected to Shielding 13 | . . 13 Core Remaining (%) 100 | 100 . . Volleys Fired 64 | . 61 3 Largest 2 | . 2 2 Hottest 60 | . 60 55 Shots Fired 128 | . 122 6 Gun 87 | . 84 3 Cannon 41 | . 38 3 Launcher . | . . . Special . | . . . Kinetic 105 | . 99 6 Thermal . | . . . Explosive . | . . . Electromagnetic 23 | . 23 . Robot Hit Streak 10 | . 10 4 Robot Miss Streak 3 | . 3 1 Penetration Max . | . . . Secondary Targets 1 | . 1 . Max Gunslinging Chain 1 | . 1 . Shots Hit Robots 76 | . 71 5 Core Hits 41 | . 38 3 Critical Kills . | . . . Critical Parts Destroyed 1 | . 1 . Critical Strikes 4 | . 3 1 Destroy 1 | . 1 . Blast 2 | . 1 1 Corrupt 1 | . 1 . Melee Attacks . | . . . Impact . | . . . Slashing . | . . . Piercing . | . . . Sneak Attacks . | . . . Combat Hostiles . | . . . Follow-up Attacks . | . . . Damage Inflicted 991 | . 921 70 Guns 489 | . 471 18 Cannons 434 | . 382 52 Explosions 57 | . 57 . Melee . | . . . Ramming 11 | . 11 . Kinetic 779 | . 709 70 Thermal 57 | . 57 . Explosive . | . . . Electromagnetic 144 | . 144 . Impact . | . . . Slashing . | . . . Piercing . | . . . Highest Corruption . | . . . Average Corruption . | . . . Corruption Purged . | . . . Corruption Blocked . | . . . Overload Shots . | . . . Overflow Damage 2 | . 2 . Projectiles . | . . . Explosions 2 | . 2 . Melee . | . . . Knockbacks 1 | . 1 . Impact . | . . . Kinetic 1 | . 1 . Secondary . | . . . Self-Inflicted Damage . | . . . Shots . | . . . Rammed 5 | . 5 . Targets Rammed 6 | . 6 . Kicked . | . . . Crushed 1 | . 1 . Highest Temperature 76 | . 76 2 Average Temperature 17 | . 18 2 Received Heat Transfer 468 | . 459 9 Siege Activations . | . . . Robots Corrupted . | . . . Combat Hostiles . | . . . Parts Fried . | . . . Impact Corruptions . | . . . Robots Melted . | . . . Combat Hostiles . | . . . Parts Melted 1 | . . 1 Heat Transferred 100 | . 100 . Parts Sabotaged . | . . . Parts Stolen . | . . . Parts Stripped . | . . . Power Chain Reactions 1 | . 1 . Alert | -11 -10 -10 ------- Run | Yrd Mat Min Peak Influence 224 | . 224 117 Initial 62 | . . 62 Average 88 | . 95 101 Maximum Alert Level 1 | . 1 . Low Security (%) 96 | 100 94 100 Level 1 3 | . 5 . Level 2 . | . . . Level 3 . | . . . Level 4 . | . . . Level 5 . | . . . High Security . | . . . Max Security . | . . . Squads Dispatched 4 | . 4 . Investigation 3 | . 3 . Extermination . | . . . Reinforcement 1 | . 1 . Assault . | . . . Garrison . | . . . Intercept . | . . . Searches Triggered . | . . . Construction Impeded . | . . . Haulers Reinforced . | . . . Active Scanning Responses . | . . . Cargo Convoy Interrupts . | . . . Stealth | -11 -10 -10 --------- Run | Yrd Mat Min Distress Signals . | . . . Communications Jammed . | . . . Distress Signals . | . . . Times Spotted 37 | . 22 15 Peak Tracking Total 7 | . 3 7 Tactical Retreats 4 | . 1 3 Traps | -11 -10 -10 ------- Run | Yrd Mat Min Traps Triggered 2 | . 2 . Indirectly . | . . . Trap Hack Attempts . | . . . Triggered . | . . . Disarmed . | . . . Reprogrammed . | . . . Reused . | . . . Traps Extracted . | . . . Installed . | . . . Triggered . | . . . Machines | -11 -10 -10 ---------- Run | Yrd Mat Min Machines Disabled 1 | . 1 . Max in Single Turn 1 | . 1 . Machines Repaired . | . . . Machines Dismantled . | . . . Machines Sabotaged . | . . . Overloaded Fab Kills . | . . . Hacking | -11 -10 -10 --------- Run | Yrd Mat Min Machines Accessed 3 | . 3 . Terminals 3 | . 3 . Fabricators . | . . . Repair Stations . | . . . Recycling Units . | . . . Scanalyzers . | . . . Garrison Access . | . . . Total Hacks 7 | . 7 . Successful 3 | . 3 . Failed 4 | . 4 . Catastrophic . | . . . Database Lockouts . | . . . Manual 5 | . 5 . Terminals 7 | . 7 . Fabricators . | . . . Repair Stations . | . . . Recycling Units . | . . . Scanalyzers . | . . . Garrison Access . | . . . Terminal Hacks 3 | . 3 . Part Schematic 1 | . 1 . Emergency Access Points 1 | . 1 . Zone Layout 1 | . 1 . Fabricator Hacks . | . . . Repair Station Hacks . | . . . Recycling Unit Hacks . | . . . Scanalyzer . | . . . Garrison Access Hacks . | . . . Unauthorized Hacks . | . . . Terminals . | . . . Fabricators . | . . . Repair Stations . | . . . Recycling Units . | . . . Scanalyzers . | . . . Garrison Access . | . . . Data Cores Recovered . | . . . Used . | . . . Hacking Detections 2 | . 2 . Full Trace Events 2 | . 2 . Feedback Events . | . . . Feedback Blocked . | . . . Robot Schematics Acquired . | . . . Robots Built . | . . . Authchips . | . . . Time . | . . . Total Robot Build Rating . | . . . Part Schematics Acquired 1 | . 1 . Parts Built . | . . . Authchips . | . . . Time . | . . . Total Part Build Rating . | . . . Parts Repaired . | . . . Time . | . . . Parts Recycled . | . . . Recycled Matter . | . . . Retrieved Matter . | . . . Retrieved Components . | . . . Parts Scanalyzed . | . . . Part Schematics Acquired . | . . . Parts Damaged . | . . . Bothacking | -11 -10 -10 ------------ Run | Yrd Mat Min Used RIF Installer . | . . . Robots Hacked . | . . . Non-combat . | . . . Combat . | . . . Robot Hacks Applied . | . . . Relay Couplers Released . | . . . Fabnet Peak Effective % . | . . . Robots Rewired . | . . . Allies Hacked . | . . . Hacks Repelled . | . . . Allies | -11 -10 -10 -------- Run | Yrd Mat Min Total Allies 3 | . . 3 Largest Group 3 | . . 3 Highest-Rated Group 40 | . . 40 Highest-Rated Ally 16 | . . 16 Total Orders . | . . . Ally Attacks 17 | . . 17 Total Damage 207 | . . 207 Kills 1 | . . 1 Allies Corrupted . | . . . Allies Melted . | . . . Intel | -11 -10 -10 ------- Run | Yrd Mat Min Robot Analysis Total . | . . . Derelict Logs Recovered 1 | . . 1 Drone Launches . | . . . Drone Recoveries . | . . . Exploration | -11 -10 -10 ------------- Run | Yrd Mat Min Turns Passed 1483 | 132 945 406 Spaces Moved 815 | 85 451 279 Core 103 | 14 . 89 Treads 712 | 71 451 190 Legs . | . . . Wheels . | . . . Hover . | . . . Flight . | . . . Fastest Speed 50 | 50 160 50 Average Speed 147 | 141 160 129 Slowest Speed 160 | 160 160 160 Overloaded Moves . | . . . Propulsion Burnouts . | . . . Robots Hopped . | . . . Cave-ins Triggered . | . . . Exploration Rate (%) 44 | 7 61 65 Regions Visited 2 Branch Regions 1 Pre-discovered Areas 1 | . . 1 Known Exits Taken . | . . . Unknown Exits Taken 2 | 1 1 . Scrap Searched . | . . . Spaces Dug . | . . . Terrain Destroyed 3 | . 3 . Melee . | . . . Projectile . | . . . AOE 3 | . 3 . Terrain Rammed . | . . . Walls Destroyed . | . . . Machines Disabled . | . . . Actions | -11 -10 -10 --------- Run | Yrd Mat Min Total 973 | 96 561 316 Wait 49 | . 23 26 Move 813 | 84 450 279 Hop . | . . . Pick Up 21 | 6 13 2 Fast Attach 3 | 2 1 . Attach 10 | 4 3 3 Detach 1 | . . 1 Swap 4 | . 2 2 Drop 2 | . 2 . Fire 64 | . 61 3 Melee . | . . . Ram . | . . . Kick . | . . . Crush 6 | . 6 . Escape Stasis . | . . . Rewire . | . . . Trap . | . . . Miscellaneous . | . . . Route ------- -11/Scrapyard -10/Materials (discovered 3 exits: [*Mat x2] / [*Min]) -10/Mines (discovered 1 exit: [*Mat]) History --------- Turn | Location | Event 4 | -11/Scrapyard | Discovered new exit (range 15) 133 | -11/Scrapyard | Entered Materials 223 | -10/Materials | Discovered new exit (range 16) 301 | -10/Materials | Build established: Mutant 471 | -10/Materials | Discovered new exit (range 12) 897 | -10/Materials | Discovered new exit (range 15) 1078 | -10/Materials | Entered Mines 1085 | -10/Mines | Joined a pair of Derelicts in attacking an 0b10 outpost 1214 | -10/Mines | Discovered new exit (range 9) 1231 | -10/Mines | Assisted by bots powering up and referring to "LRC-V3" 1262 | -10/Mines | Learned location of Mines (-8) 1383 | -10/Mines | Assembled infested the area 1388 | -10/Mines | Assisted by a Guerilla fighting off Assembled 1420 | -10/Mines | Core integrity fell below 50% 1422 | -10/Mines | Released all parts (5) 1451 | -10/Mines | Lost 3 allies 1456 | -10/Mines | Core integrity fell below 20% 1484 | -10/Mines | Destroyed by S-10 Pest with Light Assault Rifle Last Messages --------------- group of Assembled to figure out where they're coming from, and they're closing on this area, come on!" 01397_ Mercenary 1a shuts down. 01413_ C-30 ARC bursts open, deploying its payload. 01413_ D-53 Grenadier unfolds itself. 01413_ Lgt. Cannon destroyed. 01415_ K-01 Serf collects debris. 01420_ Lgt. Treads destroyed. 01422_ Released Lgt. Treads. 01422_ Released Imp. Heat Sink. 01422_ Released Lgt. Assault Rifle. 01422_ Released Lrg. Storage Unit. 01422_ Released Imp. Ion Engine. 01423_ The unstable cave ceiling collapses. 01427_ as-59792 destroyed. 01427_ as-36457 destroyed. 01427_ as-38590 destroyed. 01468_ Lgt. Armor Plating destroyed. Map ----- +----------------------------------------------------+ | | | | | | | | | | | | | ???????????????????????????????????????? | | ???????????????????????????????????????? | | ???????????????????????????????????????? | | ???????????????????????????????????????? | | ???????????????????????????????????????? | | ???????????????????????????????????????? | | ???????????????????????????????????????? | | ???????????????????????????????????????? | | ??????????################### #????? | | ??????????# #?????? | | ??????????# ## ######## ###### #?????? | | ?????????????# ###????# #??????????????? | | ?????????????# ####?# #??????????????? | | ?????????????# ### #??????????????? | | ?????????????# ## #??????????????? | | ?????????????## ## ###????????????? | | ?????????????## ### #????????????? | | ????????????## #?###s#????????????? | | ???????????## #???# #????????????? | | ??????????## #???#@#????????????? | | ??????????# #???# #????????????? | | ??????????# #???# #????????????? | | ???####???# ##???#t#????????????? | | ??## ##?## ######????# #????????????? | | ??# ### ##?????????###????????????? | | ?## #?????????????????????????? | | ?# """ #?????????????????????????? | | ?# """ ##?????????????????????????? | | ?## """ ##?????????????????????????? | | ??## #####?????????????????????? | | ???## ##????????????????????? | | ????###### #????????????????????? | | ?????????## #????????????????????? | | ??????????## #????????????????????? | | ??????????## #????????????????????? | | ???????#### #????????????????????? | | ####### ] ##???????????????????? | | **/[ #???????????????????? | | ??##### =[=![ ##???????????????????? | | ??????## [!* ???????????????????? | | ???????### # ! ??????????????????? | | ######## ?????????????????? | | " ????????????????? | | %" ??????????????? | +----------------------------------------------------+ Best States ------------- Heat Dissipation 39 Energy Generation 12 Energy Capacity 265 Matter Stores 300 Matter Capacity 300 Sight Range 16 Terrain Scan Density 10 Armor Coverage 150 Core Shielding 20 Evasion (%) 50 Recoil Reduction 2 Item Schematics ----------------- Signal Interpreter | -10/Materials | Hacked Robot Schematics ------------------ None Fabricated ------------ Nothing Alien Tech Used ----------------- None Achievements -------------- None Challenges ------------ None Game ------ Seed CannonCompanionSuperbattery Manual? 0 Play Time 00:19:00 Cumulative 15.3 hours Start 2025.03.02 @ 22:03:30 End 2025.03.02 @ 23:01:37 Sessions 1 Manual Loads 0 Difficulty Rogue Special Mode None Game No. 18 Rogue 16 Adventurer 2 Explorer 0 Win Type - Total 0 Types 0/0/0/0/0/0/0/0/0 Lore% 9 Gallery% 19 Achievement% 20 Wizard Run 0 Options --------- Layout 2 ASCII 0 Keyboard 0 Movement Arrows Keybinds 0 Fullscreen 1 Font 32/SmallcapsGlow Map View 50x44 Zoom Use 0% Tactical HUD 1 Map Filters NONE Filters NONE Steam 1 RUN: 02748ea3-6362-4f78-a7d9-961eb92e229b